fUST/lending_fUST_20240721
["ID","MTS","AMOUNT","RATE_DAILY","PERIOD"]
[332819328,1721549438533,-533.28027744,9.999e-05,2]
[332819329,1721549438543,-269.87766519,9.999e-05,2]
[332819330,1721549438552,-994.2327366,9.999e-05,2]
[332819331,1721549438563,-155.33050599,9.999e-05,2]
[332819332,1721549438575,-567.88989652,9.999e-05,2]
[332819333,1721549438586,-154.80649189,9.999e-05,2]
[332819334,1721549438595,-154.80649189,9.999e-05,2]
[332819335,1721549438606,-154.80649189,9.999e-05,2]
[332819336,1721549438618,-200.0,9.999e-05,2]
[332819337,1721549438627,-392.37099697,9.999e-05,2]
[332819338,1721549438637,-165.87918403,9.999e-05,2]
[332819339,1721549438647,-778.7273512,9.999e-05,2]
[332819340,1721549438658,-201.99905013,9.999e-05,2]
[332819341,1721549438668,-154.80649189,9.999e-05,2]
[332819342,1721549438683,-518.96291688,9.999e-05,2]
[332819343,1721549438694,-156.08968571,9.999e-05,2]
[332819344,1721549438704,-300.53555783,9.999e-05,2]
[332819345,1721549438717,-157.11131447,9.999e-05,2]
[332819346,1721549438726,-251.95958056,9.999e-05,2]
[332819347,1721549438735,-309.03427897,9.999e-05,2]
[332819348,1721549438744,-404.26765741,9.999e-05,2]
[332819349,1721549438754,-201.37891871,9.999e-05,2]
[332819350,1721549438763,-155.66508567,9.999e-05,2]
[332819351,1721549438773,-304.3160969,9.999e-05,2]
[332819352,1721549438783,-154.80649189,9.999e-05,2]
[332819353,1721549438793,-159.77983074,9.999e-05,2]
[332819354,1721549438804,-1014.19713814,9.999e-05,2]
[332819355,1721549438814,-154.80649189,9.999e-05,2]
[332819356,1721549438824,-521.35008694,9.999e-05,2]
[332819357,1721549438834,-266.40303588,9.999e-05,2]
[332819358,1721549438844,-493.63662636,9.999e-05,2]
[332819359,1721549438856,-331.03734098,9.999e-05,2]
[332819360,1721549438866,-526.40635673,9.999e-05,2]
[332819361,1721549438876,-309.52024671,9.999e-05,2]
[332819362,1721549438886,-155.15732657,9.999e-05,2]
[332819363,1721549438896,-287.38821308,0.0001,2]
[332819364,1721549438906,-200.48773076,0.0001,2]
[332819365,1721549438916,-204.39643905,0.0001,2]
[332819366,1721549438926,-1007.17,0.00010959,2]
[332819367,1721549438936,-1471.96,0.00010959,2]
[332819368,1721549438946,-1226.64,0.00010959,2]
[332819369,1721549438956,-1022.2,0.00010959,2]
[332819370,1721549438965,-851.83,0.00010959,2]
[332819371,1721549438975,-709.86,0.00010959,2]
[332819372,1721549438985,-591.55,0.00010959,2]
[332819373,1721549438994,-492.96,0.00010959,2]
[332819374,1721549439004,-67595.1121353,0.000119,2]
[332819375,1721549439014,-5507.64619972,0.00012,2]
[332819376,1721549439024,-67595.1121353,0.00013174,2]
[332819377,1721549439033,-1408.0,0.00013444,2]
[332819378,1721549439043,-4569.12780462,0.00013598,2]
[332819379,1721549439053,-398.79022581,0.00013598,2]
[332819380,1721549439063,-4569.12780458,0.00013667,2]
[332819381,1721549439073,-202785.336406,0.00013678,2]
[332819382,1721549439082,-261.65283557,0.00013698,2]
[332819383,1721549439091,-500.0,0.00013698,2]
[332819384,1721549439102,-500.0,0.00013698,2]
[332819385,1721549439113,-500.0,0.00013698,2]
[332819386,1721549439124,-500.0,0.00013698,2]
[332819387,1721549439135,-159.91876603,0.00013698,2]
[332819388,1721549439145,-292.73641952,0.00013698,2]
[332819389,1721549439156,-500.0,0.00013698,2]
[332819390,1721549439166,-500.0,0.00013698,2]
[332819391,1721549439178,-500.0,0.00013698,2]
[332819392,1721549439188,-493.36406018,0.00013698,2]
[332819393,1721549439198,-221.48489557,0.00013698,2]
[332819394,1721549439208,-512.22711624,0.00013698,2]
[332819395,1721549439219,-525.72198129,0.00013698,2]
[332819396,1721549439230,-500.0,0.00013698,2]
[332819397,1721549439239,-500.0,0.00013698,2]
[332819398,1721549439249,-500.0,0.00013698,2]
[332819399,1721549439260,-500.0,0.00013698,2]
[332819400,1721549439272,-2043.33,0.00013698,2]
[332819401,1721549439283,-500.0,0.00013698,2]
[332819402,1721549439295,-825.28,0.00013698,2]
[332819403,1721549439306,-500.0,0.00013698,2]
[332819404,1721549439318,-500.0,0.00013698,2]
[332819405,1721549439328,-500.0,0.00013698,2]
[332819406,1721549439339,-500.0,0.00013698,2]
[332819407,1721549439350,-500.0,0.00013698,2]
[332819408,1721549439360,-570.68,0.00013698,2]
[332819409,1721549439371,-500.0,0.00013698,2]
[332819410,1721549439381,-500.0,0.00013698,2]
[332819411,1721549439393,-500.0,0.00013698,2]
[332819412,1721549439404,-500.0,0.00013698,2]
[332819413,1721549439415,-500.0,0.00013698,2]
[332819414,1721549439426,-241.56863767,0.00013698,2]
[332819415,1721549439435,-568.66,0.00013698,2]
[332819416,1721549439444,-1081.97,0.00013698,2]
[332819417,1721549439694,-500.0,0.00013698,2]
[332819418,1721549439704,-500.0,0.00013698,2]
[332819419,1721549439715,-503.95767655,0.00013698,2]
[332819420,1721549439724,-500.0,0.00013698,2]
[332819421,1721549439734,-500.0,0.00013698,2]
[332819422,1721549439744,-500.0,0.00013698,2]
[332819423,1721549439757,-500.0,0.00013698,2]
[332819424,1721549439767,-500.0,0.00013698,2]
[332819425,1721549439778,-500.0,0.00013698,2]
[332819426,1721549439790,-551.06,0.00013698,2]
[332819427,1721549439801,-707.38,0.00013698,2]
[332819428,1721549439811,-534.65442884,0.00013698,2]
[332819429,1721549439820,-500.0,0.00013698,2]
[332819430,1721549439831,-500.0,0.00013698,2]
[332819431,1721549439843,-1309.87,0.00013698,2]
[332819432,1721549439853,-529.97,0.00013698,2]
[332819433,1721549439863,-500.0,0.00013698,2]
[332819434,1721549439873,-772.15,0.00013698,2]
[332819435,1721549439883,-1454.67,0.00013698,2]
[332819436,1721549439893,-502.55534474,0.00013698,2]
[332819437,1721549439905,-587.38,0.00013698,2]
[332819438,1721549439915,-756.3,0.00013698,2]
[332819439,1721549439925,-652.99,0.00013698,2]
[332819440,1721549439935,-500.0,0.00013698,2]
[332819441,1721549439947,-500.0,0.00013698,2]
[332819442,1721549439957,-500.0,0.00013698,2]
[332819443,1721549439968,-500.0,0.00013698,2]
[332819444,1721549439979,-500.0,0.00013698,2]
[332819445,1721549439990,-500.0,0.00013698,2]
[332819446,1721549440000,-501.15,0.00013698,2]
[332819447,1721549440011,-500.0,0.00013698,2]
[332819448,1721549440021,-502.53402943,0.00013698,2]
[332819449,1721549440030,-500.0,0.00013698,2]
[332819450,1721549440040,-263.67743305,0.00013698,2]
[332819451,1721549440051,-500.0,0.00013698,2]
[332819452,1721549440061,-500.0,0.00013698,2]
[332819453,1721549440072,-500.0,0.00013698,2]
[332819454,1721549440083,-500.0,0.00013698,2]
[332819455,1721549440092,-500.0,0.00013698,2]
[332819456,1721549440102,-500.0,0.00013698,2]
[332819457,1721549440112,-541.72015589,0.00013698,2]
[332819459,1721549440122,-1361.66,0.00013698,2]
[332819460,1721549440133,-500.0,0.00013698,2]
[332819461,1721549440143,-500.0,0.00013698,2]
[332819462,1721549440153,-500.0,0.00013698,2]
[332819463,1721549440166,-782.31,0.00013698,2]
[332819464,1721549440177,-500.0,0.00013698,2]
[332819465,1721549440188,-502.8673748,0.00013698,2]
[332819466,1721549440199,-653.07,0.00013698,2]
[332819467,1721549440211,-501.32670427,0.00013698,2]
[332819468,1721549440221,-527.58399324,0.00013698,2]
[332819469,1721549440231,-500.0,0.00013698,2]
[332819470,1721549440240,-500.0,0.00013698,2]
[332819471,1721549440249,-500.0,0.00013698,2]
[332819472,1721549440258,-502.94625044,0.00013698,2]
[332819473,1721549440268,-500.0,0.00013698,2]
[332819474,1721549440277,-502.61776133,0.00013698,2]
[332819475,1721549440287,-500.0,0.00013698,2]
[332819476,1721549440297,-770.45,0.00013698,2]
[332819477,1721549440309,-500.0,0.00013698,2]
[332819478,1721549440320,-500.0,0.00013698,2]
[332819479,1721549440331,-500.0,0.00013698,2]
[332819480,1721549440342,-513.99016088,0.00013698,2]
[332819481,1721549440352,-501.86602265,0.00013698,2]
[332819482,1721549440363,-500.0,0.00013698,2]
[332819483,1721549440372,-500.0,0.00013698,2]
[332819484,1721549440383,-500.0,0.00013698,2]
[332819485,1721549440395,-538.97931944,0.00013698,2]
[332819486,1721549440404,-500.0,0.00013698,2]
[332819487,1721549440413,-500.0,0.00013698,2]
[332819488,1721549440424,-500.0,0.00013698,2]
[332819489,1721549440433,-954.36,0.00013698,2]
[332819490,1721549440443,-500.0,0.00013698,2]
[332819491,1721549440453,-500.0,0.00013698,2]
[332819492,1721549440463,-500.83632425,0.00013698,2]
[332819493,1721549440473,-500.0,0.00013698,2]
[332819494,1721549440484,-502.82423385,0.00013698,2]
[332819495,1721549440493,-690.17,0.00013698,2]
[332819496,1721549440502,-458.59404829,0.00013698,2]
[332819497,1721549440511,-500.0,0.00013698,2]
[332819498,1721549440520,-500.0,0.00013698,2]
[332819499,1721549440530,-500.0,0.00013698,2]
[332819500,1721549440539,-661.78,0.00013698,2]
[332819501,1721549440548,-814.48,0.00013698,2]
[332819502,1721549440557,-500.0,0.00013698,2]
[332819503,1721549440566,-500.0,0.00013698,2]
[332819504,1721549440576,-500.0,0.00013698,2]
[332819505,1721549440585,-500.0,0.00013698,2]
[332819506,1721549440594,-500.0,0.00013698,2]
[332819507,1721549440604,-500.0,0.00013698,2]
[332819508,1721549440617,-500.0,0.00013698,2]
[332819509,1721549440627,-726.93,0.00013698,2]
[332819510,1721549440636,-303.54054929,0.00013698,2]
[332819511,1721549440646,-500.0,0.00013698,2]
[332819512,1721549440656,-500.0,0.00013698,2]
[332819513,1721549440666,-500.0,0.00013698,2]
[332819514,1721549440675,-692.15,0.00013698,2]
[332819515,1721549440688,-503.92362995,0.00013698,2]
[332819516,1721549440699,-500.0,0.00013698,2]
[332819517,1721549440709,-1188.57,0.00013698,2]
[332819518,1721549440719,-500.0,0.00013698,2]
[332819519,1721549440730,-500.0,0.00013698,2]
[332819520,1721549440739,-500.0,0.00013698,2]
[332819521,1721549440749,-500.0,0.00013698,2]
[332819522,1721549440761,-3718.46,0.00013698,2]
[332819523,1721549440771,-870.23,0.00013698,2]
[332819524,1721549440782,-500.0,0.00013698,2]
[332819525,1721549440794,-503.7113137,0.00013698,2]
[332819526,1721549440804,-500.0,0.00013698,2]
[332819527,1721549440814,-533.89,0.00013698,2]
[332819528,1721549440825,-575.17339828,0.00013698,2]
[332819529,1721549440836,-500.0,0.00013698,2]
[332819530,1721549440846,-1375.19,0.00013698,2]
[332819531,1721549440856,-500.0,0.00013698,2]
[332819532,1721549440865,-2469.79,0.00013698,2]
[332819533,1721549440875,-500.0,0.00013698,2]
[332819534,1721549440885,-500.0,0.00013698,2]
[332819535,1721549440895,-500.0,0.00013698,2]
[332819536,1721549440905,-500.0,0.00013698,2]
[332819537,1721549440916,-500.0,0.00013698,2]
[332819538,1721549440928,-500.0,0.00013698,2]
[332819539,1721549440937,-1840.72,0.00013698,2]
[332819540,1721549440948,-500.0,0.00013698,2]
[332819541,1721549440958,-504.28120277,0.00013698,2]
[332819542,1721549440970,-500.0,0.00013698,2]
[332819543,1721549440980,-500.0,0.00013698,2]
[332819544,1721549440990,-500.0,0.00013698,2]
[332819545,1721549441001,-500.0,0.00013698,2]
[332819546,1721549441011,-582.12759626,0.00013698,2]
[332819547,1721549441021,-500.0,0.00013698,2]
[332819548,1721549441030,-544.87,0.00013698,2]
[332819549,1721549441039,-500.0,0.00013698,2]
[332819550,1721549441048,-500.0,0.00013698,2]
[332819551,1721549441059,-500.0,0.00013698,2]
[332819552,1721549441068,-500.0,0.00013698,2]
[332819553,1721549441078,-1018.05,0.00013698,2]
[332819554,1721549441088,-500.0,0.00013698,2]
[332819555,1721549441097,-500.0,0.00013698,2]
[332819556,1721549441107,-500.0,0.00013698,2]
[332819557,1721549441116,-500.0,0.00013698,2]
[332819558,1721549441126,-500.0,0.00013698,2]
[332819559,1721549441137,-500.0,0.00013698,2]
[332819560,1721549441146,-500.0,0.00013698,2]
[332819561,1721549441157,-500.0,0.00013698,2]
[332819562,1721549441166,-500.0,0.00013698,2]
[332819563,1721549441176,-500.0,0.00013698,2]
[332819564,1721549441186,-500.0,0.00013698,2]
[332819565,1721549441197,-500.0,0.00013698,2]
[332819566,1721549441206,-500.0,0.00013698,2]
[332819567,1721549441216,-500.0,0.00013698,2]
[332819568,1721549441225,-500.0,0.00013698,2]
[332819569,1721549441235,-858.33,0.00013698,2]
[332819570,1721549441246,-500.0,0.00013698,2]
[332819571,1721549441256,-500.0,0.00013698,2]
[332819572,1721549441267,-500.0,0.00013698,2]
[332819573,1721549441276,-500.0,0.00013698,2]
[332819574,1721549441286,-503.45,0.00013698,2]
[332819575,1721549441295,-500.0,0.00013698,2]
[332819576,1721549441305,-500.0,0.00013698,2]
[332819577,1721549441315,-500.0,0.00013698,2]
[332819578,1721549441325,-310.37722088,0.00013698,2]
[332819579,1721549441336,-500.0,0.00013698,2]
[332819580,1721549441346,-1017.38,0.00013698,2]
[332819581,1721549441356,-500.0,0.00013698,2]
[332819582,1721549441366,-500.0,0.00013698,2]
[332819583,1721549441376,-500.0,0.00013698,2]
[332819584,1721549441386,-500.0,0.00013698,2]
[332819585,1721549441396,-500.0,0.00013698,2]
[332819586,1721549441406,-823.89,0.00013698,2]
[332819587,1721549441416,-500.0,0.00013698,2]
[332819588,1721549441426,-500.0,0.00013698,2]
[332819589,1721549441437,-503.14588813,0.00013698,2]
[332819590,1721549441446,-502.81565659,0.00013698,2]
[332819591,1721549441457,-723.42,0.00013698,2]
[332819592,1721549441467,-500.0,0.00013698,2]
[332819593,1721549441478,-500.89,0.00013698,2]
[332819594,1721549441487,-198.97929817,0.00013698,2]
[332819595,1721549441497,-500.0,0.00013698,2]
[332819596,1721549441506,-814.05,0.00013698,2]
[332819597,1721549441516,-460.45151269,0.00013698,2]
[332819598,1721549441526,-500.0,0.00013698,2]
[332819599,1721549441537,-500.0,0.00013698,2]
[332819600,1721549441546,-500.0,0.00013698,2]
[332819601,1721549441555,-500.0,0.00013698,2]
[332819602,1721549441564,-500.0,0.00013698,2]
[332819603,1721549441574,-1623.94,0.00013698,2]
[332819604,1721549441584,-1460.29,0.00013698,2]
[332819605,1721549441594,-500.0,0.00013698,2]
[332819606,1721549441605,-500.0,0.00013698,2]
[332819607,1721549441619,-500.0,0.00013698,2]
[332819608,1721549441630,-1588.18,0.00013698,2]
[332819609,1721549441640,-511.5,0.00013698,2]
[332819610,1721549441651,-500.0,0.00013698,2]
[332819611,1721549441662,-568.56,0.00013698,2]
[332819612,1721549441672,-500.0,0.00013698,2]
[332819613,1721549441686,-509.21573681,0.00013698,2]
[332819614,1721549441695,-500.0,0.00013698,2]
[332819615,1721549441707,-1681.36,0.00013698,2]
[332819616,1721549441716,-538.4,0.00013698,2]
[332819617,1721549441725,-522.48342793,0.00013698,2]
[332819618,1721549441734,-1615.62,0.00013698,2]
[332819619,1721549441743,-323.02370745,0.00013698,2]
[332819620,1721549441752,-500.0,0.00013698,2]
[332819621,1721549441761,-500.0,0.00013698,2]
[332819622,1721549441770,-500.0,0.00013698,2]
[332819623,1721549441779,-500.0,0.00013698,2]
[332819624,1721549441788,-505.02112383,0.00013698,2]
[332819625,1721549441800,-506.8348777,0.00013698,2]
[332819626,1721549441810,-500.0,0.00013698,2]
[332819627,1721549441822,-502.75085437,0.00013698,2]
[332819628,1721549441832,-500.0,0.00013698,2]
[332819629,1721549441842,-500.0,0.00013698,2]
[332819630,1721549441852,-500.0,0.00013698,2]
[332819631,1721549441862,-500.0,0.00013698,2]
[332819632,1721549441872,-501.19667291,0.00013698,2]
[332819633,1721549441883,-502.62244927,0.00013698,2]
[332819634,1721549441892,-502.70524814,0.00013698,2]
[332819635,1721549441901,-500.0,0.00013698,2]
[332819636,1721549441911,-731.88,0.00013698,2]
[332819637,1721549441920,-501.72351457,0.00013698,2]
[332819638,1721549441933,-500.0,0.00013698,2]
[332819639,1721549441943,-500.98459521,0.00013698,2]
[332819640,1721549441955,-506.67046312,0.00013698,2]
[332819641,1721549441965,-501.05158394,0.00013698,2]
[332819642,1721549441974,-150.0,0.00013698,2]
[332819643,1721549441984,-500.0,0.00013698,2]
[332819644,1721549441993,-504.51992747,0.00013698,2]
[332819645,1721549442002,-1187.87,0.00013698,2]
[332819646,1721549442012,-277.30974389,0.00013698,2]
[332819647,1721549442021,-500.0,0.00013698,2]
[332819648,1721549442030,-500.0,0.00013698,2]
[332819649,1721549442040,-500.0,0.00013698,2]
[332819650,1721549442049,-505.04722869,0.00013698,2]
[332819651,1721549442059,-555.68,0.00013698,2]
[332819652,1721549442068,-500.0,0.00013698,2]
[332819653,1721549442079,-501.12390469,0.00013698,2]
[332819654,1721549442089,-500.0,0.00013698,2]
[332819655,1721549442099,-500.0,0.00013698,2]
[332819656,1721549442109,-500.0,0.00013698,2]
[332819657,1721549442120,-500.0,0.00013698,2]
[332819658,1721549442131,-632.24271543,0.00013698,2]
[332819659,1721549442143,-513.01851565,0.00013698,2]
[332819660,1721549442154,-501.90667774,0.00013698,2]
[332819661,1721549442165,-500.0,0.00013698,2]
[332819662,1721549442174,-500.0,0.00013698,2]
[332819663,1721549442185,-660.46,0.00013698,2]
[332819664,1721549442194,-502.20136358,0.00013698,2]
[332819665,1721549442204,-500.0,0.00013698,2]
[332819666,1721549442213,-500.0,0.00013698,2]
[332819667,1721549442223,-500.0,0.00013698,2]
[332819668,1721549442232,-500.0,0.00013698,2]
[332819669,1721549442242,-500.0,0.00013698,2]
[332819670,1721549442252,-653.25,0.00013698,2]
[332819671,1721549442262,-500.0,0.00013698,2]
[332819672,1721549442272,-177.03307554,0.00013698,2]
[332819673,1721549442283,-500.0,0.00013698,2]
[332819674,1721549442292,-500.0,0.00013698,2]
[332819675,1721549442302,-500.0,0.00013698,2]
[332819676,1721549442312,-500.0,0.00013698,2]
[332819677,1721549442322,-500.0,0.00013698,2]
[332819678,1721549442332,-500.0,0.00013698,2]
[332819679,1721549442343,-500.0,0.00013698,2]
[332819680,1721549442353,-502.23902653,0.00013698,2]
[332819681,1721549442363,-546.66,0.00013698,2]
[332819682,1721549442373,-500.0,0.00013698,2]
[332819683,1721549442384,-500.0,0.00013698,2]
[332819684,1721549442394,-500.0,0.00013698,2]
[332819685,1721549442404,-500.0,0.00013698,2]
[332819686,1721549442415,-500.0,0.00013698,2]
[332819687,1721549442425,-500.0,0.00013698,2]
[332819688,1721549442439,-500.0,0.00013698,2]
[332819689,1721549442449,-500.0,0.00013698,2]
[332819690,1721549442461,-746.6,0.00013698,2]
[332819691,1721549442470,-500.0,0.00013698,2]
[332819692,1721549442480,-500.0,0.00013698,2]
[332819693,1721549442489,-500.0,0.00013698,2]
[332819694,1721549442500,-500.0,0.00013698,2]
[332819695,1721549442510,-500.0,0.00013698,2]
[332819696,1721549442521,-500.0,0.00013698,2]
[332819697,1721549442532,-500.0,0.00013698,2]
[332819698,1721549442542,-500.0,0.00013698,2]
[332819699,1721549442551,-1910.46,0.00013698,2]
[332819700,1721549442560,-500.0,0.00013698,2]
[332819701,1721549442571,-502.53453976,0.00013698,2]
[332819702,1721549442582,-500.0,0.00013698,2]
[332819703,1721549442593,-500.0,0.00013698,2]
[332819704,1721549442605,-500.0,0.00013698,2]
[332819705,1721549442618,-561.36061409,0.00013698,2]
[332819706,1721549442631,-500.0,0.00013698,2]
[332819707,1721549442642,-636.95954295,0.00013698,2]
[332819708,1721549442654,-517.87667541,0.00013698,2]
[332819709,1721549442665,-500.0,0.00013698,2]
[332819710,1721549442675,-1060.28,0.00013698,2]
[332819711,1721549442687,-500.0,0.00013698,2]
[332819712,1721549442697,-500.0,0.00013698,2]
[332819713,1721549442707,-500.0,0.00013698,2]
[332819714,1721549442716,-3488.13,0.00013698,2]
[332819715,1721549442725,-1919.93,0.00013698,2]
[332819716,1721549442734,-500.0,0.00013698,2]
[332819717,1721549442743,-500.0,0.00013698,2]
[332819718,1721549442753,-500.0,0.00013698,2]
[332819720,1721549442762,-500.0,0.00013698,2]
[332819722,1721549442771,-500.0,0.00013698,2]
[332819723,1721549442780,-918.09,0.00013698,2]
[332819726,1721549442790,-500.0,0.00013698,2]
[332819730,1721549442800,-500.0,0.00013698,2]
[332819731,1721549442810,-500.0,0.00013698,2]
[332819733,1721549442820,-500.0,0.00013698,2]
[332819734,1721549442829,-500.0,0.00013698,2]
[332819736,1721549442839,-500.0,0.00013698,2]
[332819738,1721549442848,-500.0,0.00013698,2]
[332819739,1721549442858,-500.0,0.00013698,2]
[332819740,1721549442868,-500.0,0.00013698,2]
[332819742,1721549442877,-500.0,0.00013698,2]
[332819744,1721549442887,-500.0,0.00013698,2]
[332819746,1721549442896,-501.53988826,0.00013698,2]
[332819748,1721549442906,-500.0,0.00013698,2]
[332819750,1721549442916,-500.0,0.00013698,2]
[332819752,1721549442926,-500.0,0.00013698,2]
[332819753,1721549442936,-547.93,0.00013698,2]
[332819754,1721549442945,-500.0,0.00013698,2]
[332819755,1721549442955,-643.77653392,0.00013698,2]
[332819758,1721549442964,-207.03610986,0.00013698,2]
[332819761,1721549442974,-500.0,0.00013698,2]
[332819764,1721549442984,-500.0,0.00013698,2]
[332819768,1721549442993,-1204.52,0.00013698,2]
[332819771,1721549443003,-500.0,0.00013698,2]
[332819773,1721549443012,-500.0,0.00013698,2]
[332819774,1721549443021,-723.15,0.00013698,2]
[332819775,1721549443030,-500.0,0.00013698,2]
[332819776,1721549443040,-500.0,0.00013698,2]
[332819777,1721549443050,-500.0,0.00013698,2]
[332819778,1721549443059,-500.0,0.00013698,2]
[332819779,1721549443069,-513.20946376,0.00013698,2]
[332819780,1721549443079,-310.08212912,0.00013698,2]
[332819781,1721549443089,-500.0,0.00013698,2]
[332819782,1721549443098,-309.18495205,0.00013698,2]
[332819783,1721549443107,-500.0,0.00013698,2]
[332819784,1721549443117,-1513.26,0.00013698,2]
[332819785,1721549443126,-500.0,0.00013698,2]
[332819786,1721549443136,-500.0,0.00013698,2]
[332819787,1721549443145,-500.0,0.00013698,2]
[332819788,1721549443154,-500.0,0.00013698,2]
[332819789,1721549443163,-503.64244037,0.00013698,2]
[332819790,1721549443173,-500.0,0.00013698,2]
[332819791,1721549443183,-500.0,0.00013698,2]
[332819792,1721549443193,-500.0,0.00013698,2]
[332819793,1721549443202,-500.0,0.00013698,2]
[332819794,1721549443211,-500.0,0.00013698,2]
[332819795,1721549443220,-500.0,0.00013698,2]
[332819796,1721549443229,-500.0,0.00013698,2]
[332819797,1721549443238,-500.0,0.00013698,2]
[332819798,1721549443247,-251.10593559,0.00013698,2]
[332819799,1721549443256,-500.0,0.00013698,2]
[332819800,1721549443265,-612.02126791,0.00013698,2]
[332819801,1721549443274,-500.65035042,0.00013698,2]
[332819802,1721549443284,-818.3,0.00013698,2]
[332819803,1721549443293,-504.82,0.00013698,2]
[332819804,1721549443302,-500.0,0.00013698,2]
[332819805,1721549443312,-1299.22,0.00013698,2]
[332819806,1721549443320,-360.66094085,0.00013698,2]
[332819807,1721549443369,-139.33905915,0.00013698,2]
[332819808,1721549443379,-500.0,0.00013698,2]
[332819809,1721549443388,-501.27116887,0.00013698,2]
[332819810,1721549443397,-500.0,0.00013698,2]
[332819811,1721549443406,-500.0,0.00013698,2]
[332819812,1721549443416,-500.0,0.00013698,2]
[332819813,1721549443425,-421.84840709,0.00013698,2]
[332819814,1721549444984,-410.8,0.00010959,2]
[332819815,1721549444993,-78.15159291,0.00013698,2]
[332819816,1721549445003,-500.0,0.00013698,2]
[332819817,1721549445013,-500.0,0.00013698,2]
[332819818,1721549445022,-531.44786303,0.00013698,2]
[332819819,1721549445032,-504.84509433,0.00013698,2]
[332819820,1721549445041,-500.0,0.00013698,2]
[332819821,1721549445050,-1644.64,0.00013698,2]
[332819822,1721549445059,-500.0,0.00013698,2]
[332819823,1721549445068,-1650.72,0.00013698,2]
[332819824,1721549445078,-500.0,0.00013698,2]
[332819825,1721549445087,-502.71174989,0.00013698,2]
[332819826,1721549445097,-896.98,0.00013698,2]
[332819827,1721549445106,-500.0,0.00013698,2]
[332819828,1721549445115,-551.51,0.00013698,2]
[332819829,1721549445124,-500.0,0.00013698,2]
[332819830,1721549445133,-674.73,0.00013698,2]
[332819831,1721549445142,-500.0,0.00013698,2]
[332819832,1721549445152,-500.0,0.00013698,2]
[332819833,1721549445161,-500.0,0.00013698,2]
[332819834,1721549445170,-500.0,0.00013698,2]
[332819835,1721549445182,-500.0,0.00013698,2]
[332819836,1721549445192,-546.92,0.00013698,2]
[332819837,1721549445201,-500.0,0.00013698,2]
[332819838,1721549445210,-500.0,0.00013698,2]
[332819839,1721549445220,-500.0,0.00013698,2]
[332819840,1721549445230,-1245.47,0.00013698,2]
[332819841,1721549445239,-2023.18,0.00013698,2]
[332819842,1721549445250,-500.0,0.00013698,2]
[332819843,1721549445260,-165.40279002,0.00013698,2]
[332819844,1721549445269,-500.0,0.00013698,2]
[332819845,1721549445279,-538.31663561,0.00013698,2]
[332819846,1721549445288,-500.0,0.00013698,2]
[332819847,1721549445298,-870.7,0.00013698,2]
[332819848,1721549445307,-1785.1,0.00013698,2]
[332819849,1721549445317,-500.0,0.00013698,2]
[332819850,1721549445326,-506.01830379,0.00013698,2]
[332819851,1721549445336,-500.0,0.00013698,2]
[332819852,1721549445345,-530.93,0.00013698,2]
[332819853,1721549445354,-480.92618224,0.00013698,2]
[332819854,1721549445363,-1050.24,0.00013698,2]
[332819855,1721549445373,-500.0,0.00013698,2]
[332819856,1721549445383,-542.68,0.00013698,2]